Cogmind - Beta 15 @@@ ROGUE MODE // 2025.06.29 @ 21:27:12 Player: Dwarfinator Result: Destroyed by 5G-P7Y(R) with Subdweller Shrapnel Launcher Performance ------------- Evolutions (0) 0 Regions Visited (3) 600 Robots Destroyed (40) 200 Value Destroyed (850) 850 Prototype IDs (11) 220 Alien Tech Used (0) 0 Bonus (-98) -98 TOTAL SCORE: 1772 Bonus ------- Friendly Fire -98 Cogmind --------- Core Integrity 0/250 Matter 244/300 Energy 195/200 System Corruption 2% Temperature Cool (0) Movement Treading (320) Ox2 Location -10/Subcaves Parts ------- > --- POWER (1+3) ------ Subdweller Power Source > --- PROPULSION (2) --- Light Treads Subdweller Monowheel > --- UTILITY (2) ------ High-capacity Storage Unit Power Bank > --- WEAPON (2) ------- Subdweller Laser Rocket Launcher > --- INVENTORY (20) --- Subdweller Power Source Light Treads Light Treads Light Treads Subdweller Monowheel Disposable Heat Sink Machine Analyzer Seismic Detector Makeshift Kinetic Plating Scrap Shield Bomb Drone Bay Subdweller Laser Subdweller Laser Subdweller Laser Datajack Multitool Makeshift Hammer Peak State ------------ > --- POWER ------------ Subdweller Power Source > --- PROPULSION ------- Light Treads Subdweller Monowheel > --- UTILITY ---------- High-capacity Storage Unit Power Bank > --- WEAPON ----------- Subdweller Laser Makeshift Hammer > --- INVENTORY -------- Subdweller Power Source Light Treads Light Treads Light Treads Subdweller Monowheel Disposable Heat Sink Machine Analyzer Seismic Detector Makeshift Kinetic Plating Scrap Shield Bomb Drone Bay Subdweller Laser Subdweller Laser Subdweller Laser Rocket Launcher Subdweller Shrapnel Launcher Datajack Multitool [Rating: 25] Favorites ----------- Power Light Ion Engine Engine Light Ion Engine Power Core Light Nuclear Core Propulsion Light Treads Treads Light Treads Wheel Subdweller Monowheel Utility High-capacity Storage Unit Device Seismic Detector Storage High-capacity Storage Unit Protection Light Armor Plating Weapon Subdweller Laser Energy Gun Subdweller Laser Energy Cannon Subdweller Beam Cannon Ballistic Gun Assault Rifle Launcher Rocket Launcher Special Weapon Mining Laser Impact Weapon Makeshift Hammer Build | -11 -10 -10 -10 ------- Run | Yrd Mat Min Sub Slots Evolved . | . . . . Power . | . . . . Propulsion . | . . . . Utility . | . . . . Weapon . | . . . . Parts Attached 39 | 8 7 4 20 Power 7 | 1 1 2 3 Engine 6 | 1 1 1 3 Core 1 | . . 1 . Reactor . | . . . . Propulsion 7 | 2 2 . 3 Treads 5 | 2 2 . 1 Leg . | . . . . Wheel 2 | . . . 2 Hover . | . . . . Flight . | . . . . Utility 9 | 3 3 . 3 Device 4 | 2 . . 2 Storage 3 | 1 2 . . Processor . | . . . . Hackware . | . . . . Protection 2 | . 1 . 1 Artifact . | . . . . Weapon 16 | 2 1 2 11 Energy Gun 8 | 1 . 1 6 Energy Cannon 1 | . . . 1 Ballistic Gun 3 | 1 . 1 1 Ballistic Cannon . | . . . . Launcher 2 | . . . 2 Special Weapon 1 | . 1 . . Impact Weapon 1 | . . . 1 Slashing Weapon . | . . . . Piercing Weapon . | . . . . Special Melee Weapon . | . . . . Unidentified Prototypes . | . . . . Parts Lost 8 | . . 3 5 Power 3 | . . 1 2 Propulsion 1 | . . . 1 Utility 1 | . . 1 . Weapon 3 | . . 1 2 Highest Loss Streak 2 | . . 2 1 To Critical Strikes . | . . . . Average Backups 16 | 4 14 16 17 Power . | 1 1 . . Propulsion 3 | . 3 4 3 Utility 4 | . 3 3 6 Weapon 6 | 2 6 7 5 Tool/Special . | . . . . Unused Backups 29 | . 6 4 19 Power 1 | . . . 1 Propulsion 4 | . 2 . 2 Utility 9 | . . 1 8 Weapon 13 | . 4 3 6 Tool/Special 2 | . . . 2 Average Slot Usage (%) 99 | . 100 99 99 Engine 11 | . 14 5 13 Core 2 | . . 8 . Treads 24 | . 28 28 20 Wheel 3 | . . . 7 Device 10 | . 12 6 11 Storage 13 | . 14 14 13 Protection 3 | . 1 7 2 Energy Gun 16 | . 13 14 20 Energy Cannon 1 | . . . 3 Ballistic Gun 7 | . 9 14 2 Special Weapon 1 | . 4 . . Peak Build Rating 25 | 7 9 12 25 Average Rating 11 | 5 8 11 15 On Entrance 6 | . 7 9 11 Naked Turns . | . . . . Heaviest Build 64 | 13 50 52 64 Greatest Support 40 | 40 40 40 40 Greatest Overweight (x) 2 | 1 1 1 2 Average Overweight (x) 1 | . . 1 1 Largest Inventory Capacity 20 | 8 20 20 20 Average Capacity 18 | 7 16 20 20 Most Carried 20 | 6 20 20 20 Average Carried 17 | 4 14 18 19 Final Capacity 20 | 8 20 20 20 Final Carried 20 | 6 20 17 19 Class Distribution -------------------- 88% | Mutant 6% | Derelict-Mutant 5% | Scavenger-Mutant Dominant Class ---------------- Mutant | -10/Materials Mutant | -10/Mines Mutant | -10/Subcaves Resources | -11 -10 -10 -10 ----------- Run | Yrd Mat Min Sub Matter Collected 1345 | 301 269 412 363 Remotely . | . . . . Salvage Created 1265 | 222 371 449 223 Parts 82 | 14 32 23 13 Haulers Intercepted 1 | . 1 . . Recyclers Shooed 1 | . . 1 . Parts Field Recycled . | . . . . Retrieved Matter . | . . . . Parts Self-Destructed 4 | . . . 4 Prevented . | . . . . Kills | -11 -10 -10 -10 ------- Run | Yrd Mat Min Sub Combat Hostiles Destroyed 27 | . 10 12 5 Guns 26 | . 10 11 5 Classes Destroyed 10 | 3 5 . 2 Worker 1 | 1 . . . Tunneler 5 | 5 . . . Hauler 1 | . 1 . . Recycler 2 | 1 . 1 . Operator 1 | . 1 . . Watcher 3 | . 3 . . Swarmer 11 | . 5 6 . Grunt 11 | . 5 6 . Artisan 1 | . . . 1 Subdweller 5 | . . . 5 Best Kill Streak 6 | 2 6 4 1 Combat Bots Only 4 | . 4 3 1 Max Kills in Single Turn 1 | 1 1 1 1 Gunslinging . | . . . . Exploded . | . . . . Melee . | . . . . Uniques/NPCs Destroyed . | . . . . Combat | -11 -10 -10 -10 -------- Run | Yrd Mat Min Sub Hostile Shots Fired 123 | . 24 56 43 Missed 24 | . 8 4 12 Hits 99 | . 16 52 31 Projectile 99 | . 16 52 31 AOE 2 | . . . 2 Critical Strikes 4 | . 1 1 2 Damage Taken 1512 | . 188 564 760 Core 256 | . 32 101 123 Absorbed by Shields 82 | . . 50 32 Ignored by Resistances 29 | . . . 29 Regen/Repaired (Parts) 130 | . 130 . . Core Remaining (%) 100 | 100 . . . Volleys Fired 168 | 21 39 41 67 Largest 2 | 2 2 2 2 Hottest 120 | 70 100 70 120 Shots Fired 272 | 28 67 82 95 Gun 243 | 28 55 82 78 Cannon 16 | . . . 16 Launcher 1 | . . . 1 Special 12 | . 12 . . Kinetic 99 | 7 26 41 25 Thermal 172 | 21 41 41 69 Explosive 1 | . . . 1 Electromagnetic . | . . . . Robot Hit Streak 26 | 6 13 15 26 Robot Miss Streak 3 | 2 2 3 3 Penetration Max . | . . . . Secondary Targets 2 | . 1 1 . Max Gunslinging Chain 1 | . 1 1 . Shots Hit Robots 163 | 19 37 62 45 Core Hits 64 | 8 23 21 12 Critical Kills . | . . . . Critical Parts Destroyed 1 | . . 1 . Critical Strikes 14 | 3 1 9 1 Burn 12 | 3 1 8 . Destroy 2 | . . 1 1 Melee Attacks 5 | . . . 5 Impact 5 | . . . 5 Slashing . | . . . . Piercing . | . . . . Sneak Attacks . | . . . . Combat Hostiles . | . . . . Follow-up Attacks . | . . . . Damage Inflicted 2486 | 226 500 844 916 Guns 2177 | 226 473 816 662 Cannons 87 | . . . 87 Explosions 69 | . . . 69 Melee 98 | . . . 98 Ramming 55 | . 27 28 . Kinetic 865 | 53 188 399 225 Thermal 1399 | 173 285 417 524 Explosive 69 | . . . 69 Electromagnetic . | . . . . Impact 98 | . . . 98 Slashing . | . . . . Piercing . | . . . . Highest Corruption 2 | . 2 2 2 Average Corruption 2 | . 2 2 2 Corruption Purged . | . . . . Corruption Blocked . | . . . . Effects 72 | . 16 27 29 Message Errors 20 | . 3 9 8 Matter Fused 15 | . 5 3 7 Heat Flow Errors 4 | . . 3 1 Energy Discharges 10 | . 1 7 2 Parts Fused 2 | . . 1 1 Data Loss (minor) 12 | . 5 2 5 Data Loss (major) 3 | . . 2 1 Misfires 3 | . 2 . 1 Alerts 2 | . . . 2 Weapon Failures 1 | . . . 1 Overload Shots . | . . . . Overflow Damage 38 | . . . 38 Projectiles . | . . . . Explosions . | . . . . Melee 38 | . . . 38 Knockbacks 1 | . . . 1 Impact 1 | . . . 1 Kinetic . | . . . . Secondary . | . . . . Self-Inflicted Damage . | . . . . Shots . | . . . . Rammed 14 | . 7 7 . Targets Rammed 14 | . 7 7 . Kicked . | . . . . Crushed . | . . . . Highest Temperature 258 | 36 126 258 236 Average Temperature 47 | 17 21 69 46 Received Heat Transfer 411 | . 72 243 96 Siege Activations . | . . . . Martial Activations . | . . . . Shielding Activations . | . . . . Robots Disrupted . | . . . . Combat Hostiles . | . . . . Robots Corrupted . | . . . . Combat Hostiles . | . . . . Parts Fried . | . . . . Impact Corruptions 1 | . . . 1 Robots Melted 1 | . . 1 . Combat Hostiles 1 | . . 1 . Parts Melted 7 | 4 1 1 1 Heat Transferred 4247 | 740 888 1776 843 Parts Sabotaged . | . . . . Parts Stolen . | . . . . Parts Stripped . | . . . . Power Chain Reactions . | . . . . Alert | -11 -10 -10 -10 ------- Run | Yrd Mat Min Sub Maximum Alert Level . | . . . . Low Security (%) 100 | 100 100 100 . Level 1 . | . . . . Level 2 . | . . . . Level 3 . | . . . . Level 4 . | . . . . Level 5 . | . . . . High Security . | . . . . Max Security . | . . . . Peak Influence 191 | 5 191 135 . Initial 37 | . . 37 . Average 46 | . 72 29 . Influence Increases 780 | 35 360 385 . Destroy 0b10 Robot/C 440 | . 200 240 . Destroy 0b10 Robot/NC 65 | 35 25 5 . Destroy Leader 98 | . 48 50 . Successful Hack 15 | . 15 . . Destroy Structure 12 | . 12 . . Lose Combat Pursuer 150 | . 60 90 . Influence Decreases 780 | 35 263 482 . Entered New Map 60 | . . 60 . Time Decay 710 | 35 263 412 . Lost Part 10 | . . 10 . Squads Dispatched 1 | . 1 . . Investigation . | . . . . Extermination . | . . . . Reinforcement 1 | . 1 . . Assault . | . . . . Garrison . | . . . . Intercept . | . . . . Searches Triggered . | . . . . Construction Impeded . | . . . . Haulers Reinforced . | . . . . Active Scanning Responses . | . . . . Cargo Convoy Interrupts . | . . . . Stealth | -11 -10 -10 -10 --------- Run | Yrd Mat Min Sub Distress Signals 3 | . 2 1 . Communications Jammed . | . . . . Distress Signals . | . . . . Times Spotted 39 | . 16 15 8 Peak Tracking Total 5 | . 5 3 3 Tactical Retreats 10 | . 4 5 1 Traps | -11 -10 -10 -10 ------- Run | Yrd Mat Min Sub Traps Triggered 8 | . 3 2 3 Indirectly . | . . . . Trap Hack Attempts . | . . . . Triggered . | . . . . Disarmed . | . . . . Reprogrammed . | . . . . Reused . | . . . . Traps Extracted . | . . . . Installed 4 | . . 2 2 Triggered . | . . . . Most Traps Carried 3 | . . 3 1 Machines | -11 -10 -10 -10 ---------- Run | Yrd Mat Min Sub Machines Disabled 1 | . . . 1 Max in Single Turn 1 | . . . 1 Machines Repaired . | . . . . Machines Dismantled . | . . . . Machines Sabotaged . | . . . . Overloaded Fab Kills . | . . . . Hacking | -11 -10 -10 -10 --------- Run | Yrd Mat Min Sub Machines Accessed 12 | . 9 1 2 Terminals 7 | . 7 . . Fabricators . | . . . . Repair Stations 1 | . 1 . . Recycling Units 1 | . 1 . . Scanalyzers . | . . . . Garrison Access . | . . . . Total Hacks 28 | . 23 1 4 Successful 18 | . 13 1 4 Failed 10 | . 10 . . Catastrophic 3 | . 3 . . Database Lockouts . | . . . . Manual 16 | . 16 . . Terminals 18 | . 18 . . Fabricators . | . . . . Repair Stations 4 | . 4 . . Recycling Units 1 | . 1 . . Scanalyzers . | . . . . Garrison Access . | . . . . Terminal Hacks 9 | . 4 1 4 Record 4 | . 1 . 3 Robot Analysis 2 | . 2 . . Open Door 1 | . . 1 . Hauler Manifests 1 | . 1 . . Proto ID Catalog 1 | . . . 1 Fabricator Hacks . | . . . . Repair Station Hacks 3 | . 3 . . Scan Component 2 | . 2 . . Repair 1 | . 1 . . Recycling Unit Hacks 1 | . 1 . . Retrieve Components 1 | . 1 . . Scanalyzer . | . . . . Garrison Access Hacks . | . . . . Unauthorized Hacks 5 | . 5 . . Terminals 5 | . 5 . . Skim 5 | . 5 . . Fabricators . | . . . . Repair Stations . | . . . . Recycling Units . | . . . . Scanalyzers . | . . . . Garrison Access . | . . . . Data Cores Recovered . | . . . . Used . | . . . . Hacking Detections 9 | . 9 . . Full Trace Events . | . . . . Feedback Events . | . . . . Feedback Blocked . | . . . . Robot Schematics Acquired . | . . . . Robots Built . | . . . . Authchips . | . . . . Time . | . . . . Total Robot Build Rating . | . . . . Part Schematics Acquired . | . . . . Parts Built . | . . . . Authchips . | . . . . Time . | . . . . Total Part Build Rating . | . . . . Parts Repaired 1 | . 1 . . Time 26 | . 26 . . Parts Recycled . | . . . . Recycled Matter . | . . . . Retrieved Matter . | . . . . Retrieved Components 2 | . 2 . . Parts Scanalyzed . | . . . . Part Schematics Acquired . | . . . . Parts Damaged . | . . . . Bothacking | -11 -10 -10 -10 ------------ Run | Yrd Mat Min Sub Used RIF Installer . | . . . . Robots Hacked . | . . . . Non-combat . | . . . . Combat . | . . . . Robot Hacks Applied . | . . . . Relay Couplers Released . | . . . . Fabnet Peak Effective % . | . . . . Robots Rewired . | . . . . Allies Hacked . | . . . . Hacks Repelled . | . . . . Allies | -11 -10 -10 -10 -------- Run | Yrd Mat Min Sub Total Allies . | . . . . Largest Group . | . . . . Highest-Rated Group . | . . . . Highest-Rated Ally . | . . . . Total Orders . | . . . . Ally Attacks . | . . . . Total Damage . | . . . . Kills . | . . . . Allies Corrupted . | . . . . Allies Melted . | . . . . Intel | -11 -10 -10 -10 ------- Run | Yrd Mat Min Sub Active Infowar (turns) 4203 | 131 1333 700 2039 Terrain 2 | 2 . . . Seismic 4201 | 129 1333 700 2039 Robot Analysis Total 2 | . 2 . . Derelict Logs Recovered 2 | . . 2 . Drone Launches . | . . . . Drone Recoveries . | . . . . Exploration | -11 -10 -10 -10 ------------- Run | Yrd Mat Min Sub Turns Passed 5740 | 232 1480 1610 2418 Spaces Moved 2669 | 106 669 577 1317 Core 8 | 8 . . . Treads 1740 | 98 669 577 396 Legs . | . . . . Wheels 921 | . . . 921 Hover . | . . . . Flight . | . . . . Fastest Speed 50 | 50 160 240 130 Average Speed 183 | 153 180 240 163 Slowest Speed 240 | 160 240 240 240 Overloaded Moves . | . . . . Propulsion Burnouts . | . . . . Robots Hopped . | . . . . Potential Cave-ins . | . . . . Cave-ins Triggered . | . . . . Exploration Rate (%) 67 | 6 98 99 68 Regions Visited 3 Branch Regions 2 Pre-discovered Areas . | . . . . Known Exits Taken 2 | . 1 1 . Unknown Exits Taken 1 | 1 . . . Scrap Searched 15 | . . 1 14 Spaces Dug 11 | . 11 . . Terrain Destroyed 27 | . 12 . 15 Melee . | . . . . Projectile 15 | . 12 . 3 AOE 12 | . . . 12 Terrain Rammed . | . . . . Walls Destroyed . | . . . . Machines Disabled . | . . . . Actions | -11 -10 -10 -10 --------- Run | Yrd Mat Min Sub Total 3193 | 145 843 715 1490 Wait 171 | 1 80 69 21 Move 2666 | 105 668 576 1317 Hop . | . . . . Pick Up 59 | 9 21 5 24 Fast Attach 9 | 5 . . 4 Attach 13 | 3 . 3 7 Detach . | . . . . Swap 41 | . 20 2 19 Drop 40 | 1 8 8 23 Fire 168 | 21 39 41 67 Melee 5 | . . . 5 Ram . | . . . . Kick . | . . . . Crush 14 | . 7 7 . Escape Stasis 3 | . . 2 1 Rewire . | . . . . Trap 4 | . . 2 2 Miscellaneous . | . . . . Route ------- -11/Scrapyard -10/Materials (discovered 6 exits: *Mat x3 / *Min x2 / Sub) -10/Mines (discovered 4 exits: *Mat x2 / [*Exi] / *Sub) -10/Subcaves (discovered 2 exits: [*Mat x2]) History --------- Turn | Location | Event 19 | -11/Scrapyard | Discovered new exit (range 14) 233 | -11/Scrapyard | Entered Materials 310 | -10/Materials | Build established: Mutant 422 | -10/Materials | Discovered new exit (range 7) 453 | -10/Materials | Discovered new exit (range 13) 617 | -10/Materials | Discovered new exit (range 15) 766 | -10/Materials | Discovered new exit (range 16) 770 | -10/Materials | Loaded intel: 14 trap records 821 | -10/Materials | Loaded intel: 2 recycling unit locations 863 | -10/Materials | Learned 2 Mines zone layouts 946 | -10/Materials | Identified exit to Mines 946 | -10/Materials | Identified exit to Materials 984 | -10/Materials | Identified exit to Subcaves 1186 | -10/Materials | Discovered exit to Materials (range 13) 1583 | -10/Materials | Repaired Lgt. Treads 1713 | -10/Materials | Entered Mines 1758 | -10/Mines | Found the Drone Emporium 1772 | -10/Mines | Found Prototype Device 2093 | -10/Mines | Discovered exit to Materials (range 13) 2144 | -10/Mines | Discovered exit to Subcaves (range 4) 2409 | -10/Mines | Learned Materials interactive machine intel 2426 | -10/Mines | Learned Materials security intel 2453 | -10/Mines | Found a hidden stash of uninstalled traps 2670 | -10/Mines | Deemed a non-threat by the Exiles lab entrance 2670 | -10/Mines | Discovered new exit (range 5) 2857 | -10/Mines | Core integrity fell below 50% 2930 | -10/Mines | Received a Rocket Launcher from a helpful Derelict 3323 | -10/Mines | Entered Subcaves 3324 | -10/Subcaves | Approached by a straggling Scientist 3497 | -10/Subcaves | Disturbed a concealed Subdweller 3650 | -10/Subcaves | Visited 4L-MR0's lab 3695 | -10/Subcaves | Found Power Bank 3975 | -10/Subcaves | Discovered new exit (range 9) 3990 | -10/Subcaves | Shifting Twisted Machinery released Sub. Monowheel 4023 | -10/Subcaves | Shifting Twisted Machinery released Flamer 4300 | -10/Subcaves | A swath of the cavern ceiling suddenly collapsed 4639 | -10/Subcaves | Visited Clippyterm 4643 | -10/Subcaves | Learned Research machine intel 4788 | -10/Subcaves | Shifting Twisted Machinery released Flamer 4851 | -10/Subcaves | Shifting Twisted Machinery released Sub. Machine Gun 5216 | -10/Subcaves | Build established: Derelict-Mutant 5424 | -10/Subcaves | Discovered new exit (range 9) 5548 | -10/Subcaves | Build established: Mutant 5717 | -10/Subcaves | A Subdweller sparked back to life 5717 | -10/Subcaves | A Subdweller sparked back to life 5717 | -10/Subcaves | A Subdweller sparked back to life 5718 | -10/Subcaves | Core integrity fell below 20% 5737 | -10/Subcaves | Attached Power Bank, gained temporary slots: Power x3 5741 | -10/Subcaves | Destroyed by 5G-P7Y(R) with Subdweller Shrapnel Launcher Last Messages --------------- 05514_ Searching scrap... 05514_ Found Sub. Shrapnel Launcher. 05514_ Found Sub. Monowheel. 05514_ Found 58 Matter. 05518_ Acquired Sub. Monowheel. 05520_ Acquired Sub. Shrapnel Launcher. 05545_ System corrupted: Energy discharge (-54). 05569_ Dropped Hcp. Matter Pod. 05570_ Acquired Sub. Power Source. 05700_ SGG0L8LVNDS1RH0AHZWBU 05739_ Sub. Shrapnel Launcher destroyed. [Achievement: Back For More] Map ----- +----------------------------------------------------+ | ?????## ## #### #??????????? | | ?????# ### ##### ##]&## #??????????? | | ?????# ##?#### ##?## #!%%*!=#??????????? | | ?????# ###???####?## < # %[# #??????????? | | ?????# ##???###?# # %## #??????????? | | ?????# ##?# #?# # #### #??????????? | | ?????# ## #?## ### ##??????????? | | ?????## """ #??###??## ####???????????? | | ???##?# """#?###?????####??????????????? | | ???# ### ##"### ##??????????????????????? | | ???# ### ##?## ""#??????????????????????? | | ???# #?# !### ""###????????????????????? | | ???# ### &% """" #????????????????????? | | ???# ! "" ###??????????????????? | | ???## ## ! "" % ""## ##?????????????????? | | ????# #### ## " " ## #?????????????????? | | ????# #??######## " ## ##????????????????? | | ???## ######????## ##???????????????? | | ?### ###???# #???????????????? | | ?# ##### ##???????????????? | | ?# ## #????????????????? | | ?## #### ;#????????????????? | | ??#### ####??# ##; ;#????????????????? | | ?????#### ##?????### ; ;#????????????????? | | ????????## ##???????# ; ;#????????????????? | | ????###?## #???????#;;@ ##???????????????? | | ???## ### ##??????#; #?????????????? | | ???# ## #####??#; #?????????????? | | ???## #??## ##?????????????? | | ????## ##???## ##??????????????? | | ?????## ### # ##?????## R ##??????????????? | | ??????####?## ###???????? R ##?????????????? | | ????????????########??????## #?????????????? | | ????????????????# ###???# #?????????????? | | ????????????????#$ #??# #?????????????? | | ?????????????????# ### ##?????????????? | | ????????????????????# "" #??????????????? | | ????????????????????#" " #?????????????? | | ?????????????????# & #?????????????? | | ?????????????????# # &" ##?????????????? | | ?????????????????#??## " " #??????????????? | | ???????????????????? # ## #??????????????? | | ??????????????????? #?###??????????????? | | ?????????????????? ## ??????????????????? | | ???????????????? ##?# ??????????????????? | | ??????????????? " ???# ??????????????????? | | ???????????????""""????#""""??????????????????? | | ????????????????""?????" ###?????????????????? | | ???????????????????????? ?????????????????????? | | ???????????????????????? ?????????????????????? | +----------------------------------------------------+ Best States ------------- Heat Dissipation 25 Energy Generation 15 Energy Capacity 250 Matter Stores 300 Matter Capacity 300 Sight Range 16 Terrain Scan Density 10 Armor Coverage 150 Resistance: KI 10 Evasion (%) 40 Recoil Reduction 2 Item Schematics ----------------- None Robot Schematics ------------------ None Fabricated ------------ Nothing Repaired ---------- Lgt. Treads | 7% | -10/Materials Alien Tech Used ----------------- None Achievements -------------- Back For More Challenges ------------ None Game ------ Seed HellfireOvertunedScrap Manual? 0 Play Time 01:15:01 Cumulative 411.8 hours Start 2025.06.29 @ 19:23:00 End 2025.06.29 @ 21:27:12 Sessions 1 Manual Loads 0 Difficulty Rogue Special Mode None Game No. 50 Rogue 47 Adventurer 3 Explorer 0 Win Type - Total 15 Types 8/0/3/1/0/0/1/1/1/0 Lore% 68 Gallery% 79 Achievement% 87 Wizard Run 0 Options --------- Layout 0 ASCII 0 Keyboard 0 Movement Numpad Keybinds 0 Fullscreen 1 Font 18/SmallcapsGlow Map View 76x50 Zoom Use 0% Tactical HUD 1 Map Filters NONE Filters NONE Steam 1 RUN: 8a914bca-3a47-4f8a-b9d4-3b6fdae410d1